[Event "Titled Tuesday Blitz June 13 Late 2023"]
[White "Nikologorsky, Matfei"]
[Black "Petesch, Gabriel"]
[WhiteFideId "24102474"]
[BlackFideId "2032465"]
[WhiteElo "2153"]
[BlackElo "2374"]
[Result "1-0"]
[Round "7"]
[TimeControl "180+2"]
[Date "2023.06.13"]
[WhiteClock "0:00:20"]
[BlackClock "0:00:00"]
[Board "89"]

1. e4 {[%clk 0:03:00]}  d6 {[%clk 0:02:18]} 2. d4 {[%clk 0:03:00]}  e5 {[%clk 0:02:17]} 3. Nf3 {[%clk 0:02:58]}  exd4 {[%clk 0:02:14]} 4. Nxd4 {[%clk 0:02:55]}  Nf6 {[%clk 0:02:13]} 5. Nc3 {[%clk 0:02:54]}  Be7 {[%clk 0:02:13]} 6. Be2 {[%clk 0:02:52]}  O-O {[%clk 0:02:14]} 7. Be3 {[%clk 0:02:50]}  a6 {[%clk 0:02:12]} 8. O-O {[%clk 0:02:49]}  b5 {[%clk 0:02:03]} 9. f3 {[%clk 0:02:44]}  Bb7 {[%clk 0:02:00]} 10. Nf5 {[%clk 0:02:42]}  Nbd7 {[%clk 0:01:51]} 11. Qd2 {[%clk 0:02:34]}  Re8 {[%clk 0:01:49]} 12. Nxe7+ {[%clk 0:02:33]}  Qxe7 {[%clk 0:01:49]} 13. Bg5 {[%clk 0:02:26]}  h6 {[%clk 0:01:49]} 14. Bh4 {[%clk 0:02:26]}  Nxe4 {[%clk 0:01:45]} 15. fxe4 {[%clk 0:02:05]}  Qxh4 {[%clk 0:01:42]} 16. Rf4 {[%clk 0:02:06]}  Qg5 {[%clk 0:01:34]} 17. h4 {[%clk 0:02:02]}  Qc5+ {[%clk 0:01:29]} 18. Kh1 {[%clk 0:02:00]}  b4 {[%clk 0:01:28]} 19. Nd5 {[%clk 0:01:57]}  Bxd5 {[%clk 0:01:18]} 20. exd5 {[%clk 0:01:58]}  Re7 {[%clk 0:01:14]} 21. Bf3 {[%clk 0:01:41]}  a5 {[%clk 0:01:08]} 22. a3 {[%clk 0:01:36]}  Rb8 {[%clk 0:00:56]} 23. axb4 {[%clk 0:01:35]}  axb4 {[%clk 0:00:56]} 24. Rf1 {[%clk 0:01:27]}  Ne5 {[%clk 0:00:53]} 25. Bh5 {[%clk 0:01:25]}  b3 {[%clk 0:00:25]} 26. c3 {[%clk 0:01:05]}  Rf8 {[%clk 0:00:22]} 27. Qd1 {[%clk 0:01:01]}  Nc4 {[%clk 0:00:18]} 28. Qd4 {[%clk 0:00:33]}  Qxd4 {[%clk 0:00:16]} 29. Rxd4 {[%clk 0:00:33]}  Nxb2 {[%clk 0:00:10]} 30. Rb1 {[%clk 0:00:32]}  g6 {[%clk 0:00:07]} 31. Bf3 {[%clk 0:00:31]}  Rb8 {[%clk 0:00:02]} 32. Rxb2 {[%clk 0:00:31]}  Re3 {[%clk 0:00:02]} 33. Rb4 {[%clk 0:00:29]}  Rxb4 {[%clk 0:00:01]} 34. cxb4 {[%clk 0:00:30]}  Rd3 {[%clk 0:00:02]} 35. Kg1 {[%clk 0:00:27]}  Rc3 {[%clk 0:00:02]} 36. Kf1 {[%clk 0:00:25]}  Rc1+ {[%clk 0:00:02]} 37. Ke2 {[%clk 0:00:24]}  Rc4 {[%clk 0:00:01]} 38. Rxb3 {[%clk 0:00:24]}  g5 {[%clk 0:00:01]} 39. hxg5 {[%clk 0:00:24]}  hxg5 {[%clk 0:00:02]} 40. Kd3 {[%clk 0:00:23]}  Rh4 {[%clk 0:00:02]} 41. b5 {[%clk 0:00:22]}  g4 {[%clk 0:00:02]} 42. Be4 {[%clk 0:00:21]}  Kg7 {[%clk 0:00:02]} 43. Rc3 {[%clk 0:00:22]}  Rh5 {[%clk 0:00:02]} 44. Rxc7 {[%clk 0:00:21]}  Kf6 {[%clk 0:00:01]} 45. b6 {[%clk 0:00:22]}  Ke5 {[%clk 0:00:01]} 46. b7 {[%clk 0:00:22]}  f5 {[%clk 0:00:02]} 47. b8=Q {[%clk 0:00:20]}  fxe4+ {[%clk 0:00:00]} 48. Ke3 {[%clk 0:00:20]} 1-0


[Site "https://www.chess.com"]

[Event "Titled Tuesday Blitz June 13 Late 2023"]
[White "Shapiro, Viktor"]
[Black "Rodriguez, Santiago"]
[WhiteFideId "4175700"]
[BlackFideId "3000591"]
[WhiteElo "2212"]
[BlackElo "2249"]
[Result "0-1"]
[Round "7"]
[TimeControl "180+2"]
[Date "2023.06.13"]
[WhiteClock "0:00:00"]
[BlackClock "0:01:05"]
[Board "92"]

1. c4 {[%clk 0:03:00]}  e5 {[%clk 0:02:59]} 2. Nc3 {[%clk 0:03:01]}  Nc6 {[%clk 0:03:00]} 3. g3 {[%clk 0:03:01]}  Bc5 {[%clk 0:03:00]} 4. Bg2 {[%clk 0:03:02]}  d6 {[%clk 0:03:01]} 5. e3 {[%clk 0:03:02]}  a6 {[%clk 0:03:01]} 6. Nge2 {[%clk 0:03:03]}  Ba7 {[%clk 0:03:02]} 7. d4 {[%clk 0:03:03]}  h5 {[%clk 0:03:02]} 8. h3 {[%clk 0:03:02]}  h4 {[%clk 0:03:02]} 9. g4 {[%clk 0:03:02]}  f5 {[%clk 0:03:03]} 10. gxf5 {[%clk 0:03:01]}  Bxf5 {[%clk 0:03:04]} 11. d5 {[%clk 0:02:51]}  Nce7 {[%clk 0:03:00]} 12. e4 {[%clk 0:02:42]}  Bh7 {[%clk 0:03:00]} 13. Bg5 {[%clk 0:02:41]}  Nf6 {[%clk 0:03:00]} 14. Bxh4 {[%clk 0:02:36]}  Bxe4 {[%clk 0:02:58]} 15. Bxe4 {[%clk 0:02:21]}  Rxh4 {[%clk 0:02:57]} 16. Bg2 {[%clk 0:02:15]}  Qd7 {[%clk 0:02:53]} 17. Qd3 {[%clk 0:02:11]}  O-O-O {[%clk 0:02:52]} 18. O-O-O {[%clk 0:02:09]}  Bxf2 {[%clk 0:02:49]} 19. Rdf1 {[%clk 0:02:09]}  Bb6 {[%clk 0:02:47]} 20. Ne4 {[%clk 0:02:04]}  Nxe4 {[%clk 0:02:41]} 21. Bxe4 {[%clk 0:02:05]}  g6 {[%clk 0:02:19]} 22. Rf7 {[%clk 0:02:03]}  Qe8 {[%clk 0:02:08]} 23. Rhf1 {[%clk 0:02:00]}  Kb8 {[%clk 0:02:01]} 24. Rg7 {[%clk 0:01:56]}  Nf5 {[%clk 0:01:56]} 25. Bxf5 {[%clk 0:01:49]}  gxf5 {[%clk 0:01:57]} 26. Rxf5 {[%clk 0:01:49]}  Qa4 {[%clk 0:01:53]} 27. Kb1 {[%clk 0:01:28]}  Rdh8 {[%clk 0:01:46]} 28. b3 {[%clk 0:01:24]}  Qa5 {[%clk 0:01:43]} 29. Rg3 {[%clk 0:01:16]}  Qe1+ {[%clk 0:01:39]} 30. Kc2 {[%clk 0:00:53]}  Qa1 {[%clk 0:01:33]} 31. Nc3 {[%clk 0:00:45]}  Bd4 {[%clk 0:01:33]} 32. Rf1 {[%clk 0:00:44]}  Qxc3+ {[%clk 0:01:25]} 33. Qxc3 {[%clk 0:00:44]}  Bxc3 {[%clk 0:01:25]} 34. Rxc3 {[%clk 0:00:40]}  Rxh3 {[%clk 0:01:25]} 35. Rxh3 {[%clk 0:00:40]}  Rxh3 {[%clk 0:01:25]} 36. Rf8+ {[%clk 0:00:40]}  Ka7 {[%clk 0:01:25]} 37. a3 {[%clk 0:00:36]}  a5 {[%clk 0:01:24]} 38. Rf7 {[%clk 0:00:31]}  Kb6 {[%clk 0:01:24]} 39. Kb2 {[%clk 0:00:29]}  c6 {[%clk 0:01:20]} 40. dxc6 {[%clk 0:00:25]}  bxc6 {[%clk 0:01:21]} 41. Rd7 {[%clk 0:00:24]}  Rd3 {[%clk 0:01:17]} 42. b4 {[%clk 0:00:22]}  axb4 {[%clk 0:01:16]} 43. axb4 {[%clk 0:00:23]}  d5 {[%clk 0:01:16]} 44. cxd5 {[%clk 0:00:18]}  cxd5 {[%clk 0:01:15]} 45. Kc2 {[%clk 0:00:15]}  e4 {[%clk 0:01:15]} 46. Rd8 {[%clk 0:00:14]}  Kb5 {[%clk 0:01:12]} 47. Rb8+ {[%clk 0:00:14]}  Kc4 {[%clk 0:01:10]} 48. b5 {[%clk 0:00:14]}  Rc3+ {[%clk 0:01:10]} 49. Kd2 {[%clk 0:00:14]}  Rb3 {[%clk 0:01:10]} 50. b6 {[%clk 0:00:14]}  Kd4 {[%clk 0:01:10]} 51. b7 {[%clk 0:00:14]}  e3+ {[%clk 0:01:09]} 52. Kc2 {[%clk 0:00:14]}  Rb6 {[%clk 0:01:08]} 53. Kd1 {[%clk 0:00:12]}  Kd3 {[%clk 0:01:08]} 54. Kc1 {[%clk 0:00:10]}  e2 {[%clk 0:01:07]} 55. Re8 {[%clk 0:00:10]}  Rxb7 {[%clk 0:01:07]} 56. Re5 {[%clk 0:00:06]}  Rc7+ {[%clk 0:01:05]} 57. Kb2 {[%clk 0:00:06]}  d4 {[%clk 0:01:06]} 58. Re6 {[%clk 0:00:00]}  Kd2 {[%clk 0:01:05]} 0-1


[Site "https://www.chess.com"]

[Event "Titled Tuesday Blitz June 13 Late 2023"]
[White "FuenfgegenWilly"]
[Black "Fedotov, Nikita"]
[BlackFideId "24161446"]
[WhiteElo "2408"]
[BlackElo "2211"]
[Result "0-1"]
[Round "7"]
[TimeControl "180+2"]
[Date "2023.06.13"]
[WhiteClock "0:00:04"]
[BlackClock "0:00:04"]
[Board "93"]

1. d4 {[%clk 0:03:00]}  Nf6 {[%clk 0:02:59]} 2. c4 {[%clk 0:03:00]}  c5 {[%clk 0:02:59]} 3. d5 {[%clk 0:02:58]}  b5 {[%clk 0:03:00]} 4. cxb5 {[%clk 0:02:53]}  a6 {[%clk 0:03:00]} 5. bxa6 {[%clk 0:02:53]}  g6 {[%clk 0:03:01]} 6. Nc3 {[%clk 0:02:52]}  Bxa6 {[%clk 0:03:01]} 7. e4 {[%clk 0:02:51]}  Bxf1 {[%clk 0:03:02]} 8. Kxf1 {[%clk 0:02:52]}  d6 {[%clk 0:03:03]} 9. g3 {[%clk 0:02:52]}  Bg7 {[%clk 0:03:03]} 10. Kg2 {[%clk 0:02:52]}  O-O {[%clk 0:03:04]} 11. Nf3 {[%clk 0:02:50]}  Nbd7 {[%clk 0:03:05]} 12. Bf4 {[%clk 0:02:45]}  Ra6 {[%clk 0:03:05]} 13. Qe2 {[%clk 0:02:40]}  Qa8 {[%clk 0:03:04]} 14. Rad1 {[%clk 0:02:37]}  Ng4 {[%clk 0:03:02]} 15. h3 {[%clk 0:02:35]}  Nge5 {[%clk 0:03:02]} 16. Bg5 {[%clk 0:02:28]}  Rb8 {[%clk 0:02:43]} 17. a4 {[%clk 0:02:04]}  Rab6 {[%clk 0:02:27]} 18. Rd2 {[%clk 0:01:59]}  Nxf3 {[%clk 0:02:20]} 19. Qxf3 {[%clk 0:01:58]}  f6 {[%clk 0:02:17]} 20. Bf4 {[%clk 0:01:53]}  Rxb2 {[%clk 0:02:17]} 21. Ra1 {[%clk 0:01:39]}  Ne5 {[%clk 0:01:56]} 22. Qe2 {[%clk 0:01:34]}  R2b4 {[%clk 0:01:34]} 23. Bxe5 {[%clk 0:01:28]}  fxe5 {[%clk 0:01:32]} 24. Qg4 {[%clk 0:01:25]}  Bf6 {[%clk 0:01:27]} 25. Qe6+ {[%clk 0:01:21]}  Kg7 {[%clk 0:01:27]} 26. Rda2 {[%clk 0:01:14]}  Qa5 {[%clk 0:01:14]} 27. h4 {[%clk 0:01:09]}  Rc4 {[%clk 0:01:14]} 28. Nb5 {[%clk 0:01:01]}  Rxe4 {[%clk 0:01:11]} 29. h5 {[%clk 0:01:02]}  gxh5 {[%clk 0:01:07]} 30. Qd7 {[%clk 0:00:55]}  Rd8 {[%clk 0:00:44]} 31. Qb7 {[%clk 0:00:48]}  h4 {[%clk 0:00:31]} 32. Nc7 {[%clk 0:00:42]}  Kf7 {[%clk 0:00:29]} 33. Ne6 {[%clk 0:00:41]}  Rg8 {[%clk 0:00:29]} 34. Qb5 {[%clk 0:00:34]}  Qc3 {[%clk 0:00:28]} 35. Ra3 {[%clk 0:00:34]}  Qd2 {[%clk 0:00:19]} 36. R3a2 {[%clk 0:00:30]}  Rxg3+ {[%clk 0:00:18]} 37. Kf1 {[%clk 0:00:28]}  Qc3 {[%clk 0:00:06]} 38. fxg3 {[%clk 0:00:23]}  Qxg3 {[%clk 0:00:07]} 39. Rg2 {[%clk 0:00:15]}  Qf3+ {[%clk 0:00:07]} 40. Kg1 {[%clk 0:00:15]}  h3 {[%clk 0:00:08]} 41. Nd8+ {[%clk 0:00:15]}  Kf8 {[%clk 0:00:07]} 42. Ne6+ {[%clk 0:00:14]}  Kf7 {[%clk 0:00:07]} 43. Nd8+ {[%clk 0:00:05]}  Kf8 {[%clk 0:00:08]} 44. Rg8+ {[%clk 0:00:03]}  Kxg8 {[%clk 0:00:07]} 45. Qe8+ {[%clk 0:00:04]}  Kg7 {[%clk 0:00:08]} 46. Ne6+ {[%clk 0:00:04]}  Kh6 {[%clk 0:00:07]} 47. Qf8+ {[%clk 0:00:04]}  Kh5 {[%clk 0:00:05]} 48. Qf7+ {[%clk 0:00:04]}  Kg4 {[%clk 0:00:01]} 49. Qg8+ {[%clk 0:00:04]}  Kf5 {[%clk 0:00:02]} 50. Rf1 {[%clk 0:00:04]}  h2+ {[%clk 0:00:02]} 51. Kxh2 {[%clk 0:00:04]}  Rh4+ {[%clk 0:00:03]} 52. Kg1 {[%clk 0:00:04]}  Rh1# {[%clk 0:00:04]} 0-1


[Site "https://www.chess.com"]

[Event "Titled Tuesday Blitz June 13 Late 2023"]
[White "Musovic, Armin"]
[Black "Avalos Parra, Joao"]
[WhiteFideId "939935"]
[BlackFideId "3402541"]
[WhiteElo "2322"]
[BlackElo "2173"]
[Result "1-0"]
[Round "7"]
[TimeControl "180+2"]
[Date "2023.06.13"]
[WhiteClock "0:00:12"]
[BlackClock "0:00:00"]
[Board "95"]

1. a3 {[%clk 0:03:00]}  d5 {[%clk 0:02:55]} 2. Nc3 {[%clk 0:03:01]}  Nf6 {[%clk 0:02:53]} 3. d3 {[%clk 0:03:02]}  e5 {[%clk 0:02:52]} 4. Bg5 {[%clk 0:03:02]}  Be6 {[%clk 0:02:52]} 5. e4 {[%clk 0:03:02]}  d4 {[%clk 0:02:52]} 6. Nce2 {[%clk 0:03:02]}  c5 {[%clk 0:02:52]} 7. h3 {[%clk 0:03:03]}  h6 {[%clk 0:02:51]} 8. Bh4 {[%clk 0:03:03]}  Nc6 {[%clk 0:02:51]} 9. f4 {[%clk 0:03:02]}  Bd6 {[%clk 0:02:42]} 10. f5 {[%clk 0:03:00]}  Bd7 {[%clk 0:02:42]} 11. g4 {[%clk 0:03:01]}  Qa5+ {[%clk 0:02:39]} 12. Kf2 {[%clk 0:03:01]}  O-O-O {[%clk 0:02:38]} 13. Nf3 {[%clk 0:03:00]}  g5 {[%clk 0:02:37]} 14. fxg6 {[%clk 0:02:58]}  Be7 {[%clk 0:02:34]} 15. b4 {[%clk 0:02:43]}  cxb4 {[%clk 0:02:29]} 16. axb4 {[%clk 0:02:43]}  Qxb4 {[%clk 0:02:29]} 17. g7 {[%clk 0:02:27]}  Rhg8 {[%clk 0:02:28]} 18. Bg3 {[%clk 0:02:28]}  Qc5 {[%clk 0:02:12]} 19. Nc1 {[%clk 0:02:21]}  Rxg7 {[%clk 0:02:04]} 20. Nb3 {[%clk 0:02:21]}  Qd6 {[%clk 0:02:03]} 21. Na5 {[%clk 0:02:13]}  Bxg4 {[%clk 0:01:43]} 22. Nxc6 {[%clk 0:02:10]}  Qxc6 {[%clk 0:01:36]} 23. Nxe5 {[%clk 0:01:58]}  Bxd1 {[%clk 0:01:30]} 24. Nxc6 {[%clk 0:01:58]}  bxc6 {[%clk 0:01:31]} 25. Rxd1 {[%clk 0:01:58]}  Nh5 {[%clk 0:01:26]} 26. Be5 {[%clk 0:01:39]}  Bh4+ {[%clk 0:01:24]} 27. Kf3 {[%clk 0:01:37]}  f6 {[%clk 0:01:23]} 28. Bh2 {[%clk 0:01:33]}  Rdg8 {[%clk 0:01:24]} 29. Rb1 {[%clk 0:01:27]}  Bg3 {[%clk 0:01:08]} 30. Bg1 {[%clk 0:01:19]}  Be5 {[%clk 0:01:03]} 31. Bf2 {[%clk 0:01:14]}  f5 {[%clk 0:00:25]} 32. exf5 {[%clk 0:00:46]}  Rf8 {[%clk 0:00:22]} 33. h4 {[%clk 0:00:43]}  Kc7 {[%clk 0:00:17]} 34. Bh3 {[%clk 0:00:40]}  Ng3 {[%clk 0:00:15]} 35. Rhe1 {[%clk 0:00:17]}  Bd6 {[%clk 0:00:13]} 36. Bxd4 {[%clk 0:00:14]}  Rgf7 {[%clk 0:00:10]} 37. f6 {[%clk 0:00:14]}  c5 {[%clk 0:00:07]} 38. Bc3 {[%clk 0:00:14]}  Nh5 {[%clk 0:00:08]} 39. Be6 {[%clk 0:00:13]}  Rh7 {[%clk 0:00:08]} 40. Ba5+ {[%clk 0:00:13]}  Kc6 {[%clk 0:00:07]} 41. c4 {[%clk 0:00:13]}  Nxf6 {[%clk 0:00:08]} 42. Kg2 {[%clk 0:00:12]}  Rg7+ {[%clk 0:00:07]} 43. Kh1 {[%clk 0:00:13]}  Ng4 {[%clk 0:00:05]} 44. Bd5+ {[%clk 0:00:12]}  Kd7 {[%clk 0:00:06]} 45. Rb7+ {[%clk 0:00:12]}  Kc8 {[%clk 0:00:03]} 46. Rxg7 {[%clk 0:00:13]}  Nf2+ {[%clk 0:00:04]} 47. Kg2 {[%clk 0:00:14]}  Nxd3 {[%clk 0:00:04]} 48. Rb1 {[%clk 0:00:13]}  Nf4+ {[%clk 0:00:05]} 49. Kh1 {[%clk 0:00:12]}  Ne2 {[%clk 0:00:05]} 50. Bb7+ {[%clk 0:00:11]}  Kb8 {[%clk 0:00:04]} 51. Bf3+ {[%clk 0:00:11]}  Kc8 {[%clk 0:00:05]} 52. Bxe2 {[%clk 0:00:11]}  Re8 {[%clk 0:00:00]} 53. Bg4+ {[%clk 0:00:12]} 1-0


[Site "https://www.chess.com"]

[Event "Titled Tuesday Blitz June 13 Late 2023"]
[White "Santos Flores, Alberto"]
[Black "Bogaudinov, Rushan"]
[WhiteFideId "3601234"]
[BlackFideId "4129288"]
[WhiteElo "2235"]
[BlackElo "1967"]
[Result "1-0"]
[Round "7"]
[TimeControl "180+2"]
[Date "2023.06.13"]
[WhiteClock "0:00:17"]
[BlackClock "0:00:00"]
[Board "97"]

1. e4 {[%clk 0:03:00]}  a6 {[%clk 0:02:57]} 2. d4 {[%clk 0:03:00]}  e6 {[%clk 0:02:56]} 3. Nf3 {[%clk 0:02:59]}  d5 {[%clk 0:02:53]} 4. e5 {[%clk 0:02:59]}  c5 {[%clk 0:02:53]} 5. c3 {[%clk 0:02:59]}  Nc6 {[%clk 0:02:53]} 6. Bd3 {[%clk 0:02:59]}  b5 {[%clk 0:02:51]} 7. Be3 {[%clk 0:02:55]}  c4 {[%clk 0:02:51]} 8. Bc2 {[%clk 0:02:55]}  Nge7 {[%clk 0:02:51]} 9. h4 {[%clk 0:02:53]}  Nf5 {[%clk 0:02:51]} 10. Bg5 {[%clk 0:02:47]}  Qb6 {[%clk 0:02:46]} 11. g4 {[%clk 0:02:46]}  Nfe7 {[%clk 0:02:44]} 12. Nbd2 {[%clk 0:02:42]}  b4 {[%clk 0:02:43]} 13. Be3 {[%clk 0:02:31]}  a5 {[%clk 0:02:38]} 14. h5 {[%clk 0:02:29]}  bxc3 {[%clk 0:02:20]} 15. bxc3 {[%clk 0:02:29]}  Qb2 {[%clk 0:02:20]} 16. h6 {[%clk 0:02:12]}  g6 {[%clk 0:02:14]} 17. Rc1 {[%clk 0:02:02]}  Qxa2 {[%clk 0:02:05]} 18. Ng5 {[%clk 0:02:02]}  Qa3 {[%clk 0:01:53]} 19. Bb1 {[%clk 0:01:52]}  a4 {[%clk 0:01:42]} 20. Nf1 {[%clk 0:01:50]}  Rb8 {[%clk 0:01:39]} 21. Qf3 {[%clk 0:01:48]}  Nf5 {[%clk 0:01:38]} 22. gxf5 {[%clk 0:01:47]}  gxf5 {[%clk 0:01:37]} 23. Qh5 {[%clk 0:01:46]}  Nd8 {[%clk 0:01:33]} 24. Ng3 {[%clk 0:01:35]}  Be7 {[%clk 0:01:18]} 25. Ne2 {[%clk 0:01:24]}  Rb2 {[%clk 0:01:06]} 26. Nf4 {[%clk 0:01:20]}  Qb3 {[%clk 0:00:50]} 27. Bxf5 {[%clk 0:01:04]}  exf5 {[%clk 0:00:45]} 28. e6 {[%clk 0:01:03]}  Bxg5 {[%clk 0:00:38]} 29. Qxg5 {[%clk 0:01:01]}  Nxe6 {[%clk 0:00:33]} 30. Nxe6 {[%clk 0:00:57]}  Bxe6 {[%clk 0:00:31]} 31. Qg7 {[%clk 0:00:51]}  Rf8 {[%clk 0:00:29]} 32. Qxh7 {[%clk 0:00:46]}  Rc2 {[%clk 0:00:19]} 33. O-O {[%clk 0:00:45]}  a3 {[%clk 0:00:15]} 34. Qg7 {[%clk 0:00:44]}  Rxc1 {[%clk 0:00:14]} 35. Rxc1 {[%clk 0:00:44]}  a2 {[%clk 0:00:13]} 36. h7 {[%clk 0:00:43]}  Qb1 {[%clk 0:00:13]} 37. Qxf8+ {[%clk 0:00:40]}  Kxf8 {[%clk 0:00:13]} 38. h8=Q+ {[%clk 0:00:40]}  Ke7 {[%clk 0:00:11]} 39. Bg5+ {[%clk 0:00:40]}  Kd6 {[%clk 0:00:11]} 40. Qd8+ {[%clk 0:00:39]}  Kc6 {[%clk 0:00:11]} 41. Qa8+ {[%clk 0:00:34]}  Kd7 {[%clk 0:00:08]} 42. Qa4+ {[%clk 0:00:27]}  Kc8 {[%clk 0:00:05]} 43. Kh2 {[%clk 0:00:20]}  Qb3 {[%clk 0:00:03]} 44. Qa8+ {[%clk 0:00:17]}  Kd7 {[%clk 0:00:00]} 45. Ra1 {[%clk 0:00:17]} 1-0


[Site "https://www.chess.com"]

[Event "Titled Tuesday Blitz June 13 Late 2023"]
[White "Arias Igual, Alejandro"]
[Black "Girsh, Daniel"]
[WhiteFideId "2254905"]
[BlackFideId "30949190"]
[WhiteElo "2179"]
[BlackElo "2075"]
[Result "0-1"]
[Round "7"]
[TimeControl "180+2"]
[Date "2023.06.13"]
[WhiteClock "0:00:04"]
[BlackClock "0:00:32"]
[Board "98"]

1. e4 {[%clk 0:03:00]}  c6 {[%clk 0:03:00]} 2. d4 {[%clk 0:03:00]}  d5 {[%clk 0:03:00]} 3. exd5 {[%clk 0:03:01]}  cxd5 {[%clk 0:03:00]} 4. Bd3 {[%clk 0:03:01]}  Nc6 {[%clk 0:03:01]} 5. c3 {[%clk 0:03:01]}  Qc7 {[%clk 0:03:00]} 6. h3 {[%clk 0:03:00]}  Nf6 {[%clk 0:03:00]} 7. Nf3 {[%clk 0:02:59]}  g6 {[%clk 0:03:00]} 8. O-O {[%clk 0:02:58]}  Bg7 {[%clk 0:03:01]} 9. Re1 {[%clk 0:02:55]}  O-O {[%clk 0:03:01]} 10. Nbd2 {[%clk 0:02:52]}  Bf5 {[%clk 0:03:02]} 11. Be2 {[%clk 0:02:52]}  Ne4 {[%clk 0:02:59]} 12. Nh4 {[%clk 0:02:35]}  Rac8 {[%clk 0:02:16]} 13. Nxf5 {[%clk 0:02:30]}  gxf5 {[%clk 0:02:17]} 14. Nf3 {[%clk 0:02:27]}  Rfd8 {[%clk 0:01:57]} 15. Bf1 {[%clk 0:02:25]}  e5 {[%clk 0:01:54]} 16. dxe5 {[%clk 0:02:02]}  Nxe5 {[%clk 0:01:54]} 17. Nd4 {[%clk 0:02:00]}  Qb6 {[%clk 0:01:27]} 18. Qb3 {[%clk 0:01:51]}  Qg6 {[%clk 0:01:22]} 19. Bf4 {[%clk 0:01:32]}  Nc5 {[%clk 0:01:18]} 20. Qc2 {[%clk 0:01:22]}  Re8 {[%clk 0:01:00]} 21. Qxf5 {[%clk 0:01:19]}  Nf3+ {[%clk 0:00:58]} 22. Kh1 {[%clk 0:01:12]}  Nxe1 {[%clk 0:00:58]} 23. Rxe1 {[%clk 0:01:05]}  Bxd4 {[%clk 0:00:50]} 24. Qxg6+ {[%clk 0:00:53]}  hxg6 {[%clk 0:00:51]} 25. Rxe8+ {[%clk 0:00:51]}  Rxe8 {[%clk 0:00:52]} 26. cxd4 {[%clk 0:00:51]}  Re1 {[%clk 0:00:52]} 27. Kg1 {[%clk 0:00:47]}  Nd3 {[%clk 0:00:50]} 28. Bd2 {[%clk 0:00:38]}  Rd1 {[%clk 0:00:50]} 29. Bc3 {[%clk 0:00:37]}  Nc1 {[%clk 0:00:50]} 30. f3 {[%clk 0:00:33]}  Ne2+ {[%clk 0:00:50]} 31. Kf2 {[%clk 0:00:33]}  Nxc3 {[%clk 0:00:48]} 32. bxc3 {[%clk 0:00:34]}  Rc1 {[%clk 0:00:49]} 33. Ke3 {[%clk 0:00:30]}  Rxc3+ {[%clk 0:00:49]} 34. Kf4 {[%clk 0:00:30]}  f6 {[%clk 0:00:48]} 35. Bb5 {[%clk 0:00:24]}  Kf7 {[%clk 0:00:47]} 36. h4 {[%clk 0:00:24]}  Ra3 {[%clk 0:00:46]} 37. g4 {[%clk 0:00:23]}  Rxa2 {[%clk 0:00:46]} 38. g5 {[%clk 0:00:20]}  fxg5+ {[%clk 0:00:45]} 39. hxg5 {[%clk 0:00:21]}  a6 {[%clk 0:00:45]} 40. Bd3 {[%clk 0:00:19]}  Ra3 {[%clk 0:00:46]} 41. Bc2 {[%clk 0:00:18]}  Rc3 {[%clk 0:00:46]} 42. Bb1 {[%clk 0:00:17]}  a5 {[%clk 0:00:42]} 43. Ba2 {[%clk 0:00:16]}  Ke6 {[%clk 0:00:41]} 44. Bb1 {[%clk 0:00:16]}  Kf7 {[%clk 0:00:34]} 45. Ba2 {[%clk 0:00:16]}  a4 {[%clk 0:00:33]} 46. Bxd5+ {[%clk 0:00:15]}  Ke7 {[%clk 0:00:34]} 47. Bxb7 {[%clk 0:00:13]}  a3 {[%clk 0:00:33]} 48. Bd5 {[%clk 0:00:12]}  Rc2 {[%clk 0:00:32]} 49. Ke5 {[%clk 0:00:11]}  Re2+ {[%clk 0:00:32]} 50. Kf4 {[%clk 0:00:09]}  Kd6 {[%clk 0:00:32]} 51. Bf7 {[%clk 0:00:08]}  a2 {[%clk 0:00:31]} 52. Bxa2 {[%clk 0:00:08]}  Rxa2 {[%clk 0:00:32]} 53. Ke3 {[%clk 0:00:04]}  Kd5 {[%clk 0:00:32]} 0-1


[Site "https://www.chess.com"]

[Event "Titled Tuesday Blitz June 13 Late 2023"]
[White "Estrada Nieto, Julian"]
[Black "The_Straightforward_Rook"]
[WhiteFideId "5101018"]
[WhiteElo "2161"]
[BlackElo "2371"]
[Result "1-0"]
[Round "7"]
[TimeControl "180+2"]
[Date "2023.06.13"]
[WhiteClock "0:00:21"]
[BlackClock "0:01:01"]
[Board "99"]

1. e4 {[%clk 0:03:00]}  c5 {[%clk 0:02:59]} 2. Nf3 {[%clk 0:03:01]}  Nc6 {[%clk 0:02:59]} 3. Bb5 {[%clk 0:03:01]}  e6 {[%clk 0:02:59]} 4. O-O {[%clk 0:03:00]}  Nge7 {[%clk 0:02:59]} 5. Re1 {[%clk 0:03:00]}  a6 {[%clk 0:02:58]} 6. Bxc6 {[%clk 0:03:00]}  Nxc6 {[%clk 0:02:58]} 7. d4 {[%clk 0:03:01]}  cxd4 {[%clk 0:02:59]} 8. Nxd4 {[%clk 0:03:01]}  Qc7 {[%clk 0:02:59]} 9. Nc3 {[%clk 0:02:57]}  Be7 {[%clk 0:02:50]} 10. Nxc6 {[%clk 0:02:50]}  dxc6 {[%clk 0:02:48]} 11. e5 {[%clk 0:02:48]}  O-O {[%clk 0:02:44]} 12. Qg4 {[%clk 0:02:46]}  Kh8 {[%clk 0:02:41]} 13. Qh5 {[%clk 0:02:14]}  g6 {[%clk 0:02:33]} 14. Qh6 {[%clk 0:02:09]}  Re8 {[%clk 0:02:27]} 15. Bg5 {[%clk 0:02:06]}  Bxg5 {[%clk 0:02:26]} 16. Qxg5 {[%clk 0:02:06]}  Qe7 {[%clk 0:02:27]} 17. Qxe7 {[%clk 0:02:02]}  Rxe7 {[%clk 0:02:27]} 18. Rad1 {[%clk 0:02:02]}  Rd7 {[%clk 0:02:26]} 19. Ne4 {[%clk 0:01:57]}  b6 {[%clk 0:02:21]} 20. Nf6 {[%clk 0:01:54]}  Raa7 {[%clk 0:02:00]} 21. Nxd7 {[%clk 0:01:50]}  Bxd7 {[%clk 0:02:01]} 22. Rd6 {[%clk 0:01:42]}  Kg8 {[%clk 0:01:59]} 23. Red1 {[%clk 0:01:41]}  Be8 {[%clk 0:02:00]} 24. f4 {[%clk 0:01:26]}  Kf8 {[%clk 0:02:00]} 25. Kf2 {[%clk 0:01:25]}  Ke7 {[%clk 0:02:00]} 26. Ke3 {[%clk 0:01:24]}  Bd7 {[%clk 0:01:53]} 27. g4 {[%clk 0:01:20]}  b5 {[%clk 0:01:51]} 28. Kd4 {[%clk 0:01:18]}  a5 {[%clk 0:01:49]} 29. Kc5 {[%clk 0:01:16]}  Rb7 {[%clk 0:01:48]} 30. b3 {[%clk 0:00:41]}  b4 {[%clk 0:01:46]} 31. Rxd7+ {[%clk 0:00:36]}  Rxd7 {[%clk 0:01:44]} 32. Rxd7+ {[%clk 0:00:35]}  Kxd7 {[%clk 0:01:45]} 33. Kb6 {[%clk 0:00:36]}  h6 {[%clk 0:01:15]} 34. h4 {[%clk 0:00:35]}  f6 {[%clk 0:01:03]} 35. exf6 {[%clk 0:00:34]}  g5 {[%clk 0:01:04]} 36. fxg5 {[%clk 0:00:25]}  hxg5 {[%clk 0:01:04]} 37. hxg5 {[%clk 0:00:23]}  e5 {[%clk 0:01:05]} 38. Kc5 {[%clk 0:00:23]}  Ke6 {[%clk 0:01:01]} 39. Kc4 {[%clk 0:00:21]} 1-0


[Site "https://www.chess.com"]